fUST/lending_fUST_20250104
["ID","MTS","AMOUNT","RATE_DAILY","PERIOD"]
[347577954,1735923047998,-608.08,0.00020273,3]
[347577956,1735923048008,-1192.39,0.00020273,3]
[347577958,1735923048018,-500.0,0.00020273,3]
[347577960,1735923048028,-500.0,0.00020273,3]
[347577962,1735923048039,-796.71,0.00020273,3]
[347577964,1735923048048,-158.61557065,0.00020273,3]
[347577966,1735923048058,-500.0,0.00020273,3]
[347577968,1735923048067,-500.0,0.00020273,2]
[347577970,1735923048077,-1303.15,0.00020273,3]
[347577972,1735923048087,-2604.47,0.00020273,3]
[347577974,1735923048097,-500.0,0.00020273,3]
[347577976,1735923048107,-500.0,0.00020273,3]
[347577978,1735923048118,-896.39,0.00020273,3]
[347577980,1735923048128,-2313.48,0.00020273,3]
[347577982,1735923048138,-227.85187844,0.00020273,3]
[347577984,1735923048148,-500.0,0.00020273,3]
[347577985,1735923048157,-893.02,0.00020273,3]
[347577986,1735923048171,-38006.48,0.00020273,3]
[347577987,1735923048180,-2264.35,0.00020273,3]
[347577988,1735923048190,-500.0,0.00020273,3]
[347577989,1735923048200,-500.0,0.00020273,3]
[347577990,1735923048211,-841.38,0.00020273,3]
[347577991,1735923048221,-713.68,0.00020273,3]
[347577992,1735923048231,-618.06,0.00020273,3]
[347577993,1735923048242,-804.46,0.00020273,3]
[347577994,1735923048253,-500.0,0.00020273,3]
[347577995,1735923048263,-500.0,0.00020273,3]
[347577996,1735923048274,-5803.72,0.00020273,3]
[347577997,1735923048284,-1096.09,0.00020273,3]
[347577998,1735923048294,-500.0,0.00020273,3]
[347577999,1735923048304,-500.0,0.00020273,2]
[347578000,1735923048314,-500.0,0.00020273,2]
[347578001,1735923048324,-470.756,0.000203,2]
[347578002,1735923048333,-2840.47715702,0.00020314,2]
[347578003,1735923048345,-500.0,0.00020321,2]
[347578005,1735923048356,-2840.47715702,0.00020417,2]
[347578006,1735923048366,-1334.71410493,0.00020447,2]
[347578008,1735923048376,-196.269182,0.00020447,2]
[347578010,1735923048386,-214.61470671,0.00020487,2]
[347578012,1735923048396,-187.587171,0.00020521,2]
[347578014,1735923048405,-1000.0,0.00020521,2]
[347578016,1735923048415,-2840.47715702,0.00020521,2]
[347578018,1735923048425,-160.0,0.00020531,3]
[347578020,1735923048434,-293.94613,0.00020547,2]
[347578022,1735923048445,-500.0,0.00020547,3]
[347578024,1735923048455,-151.0,0.00020547,2]
[347578026,1735923048464,-500.0,0.00020547,3]
[347578028,1735923048473,-151.0,0.00020547,2]
[347578030,1735923048482,-169.772713,0.00020547,2]
[347578032,1735923048492,-500.0,0.00020547,3]
[347578034,1735923048501,-522.94,0.00020547,3]
[347578036,1735923048511,-508.1,0.00020547,3]
[347578038,1735923048521,-510.98,0.00020547,3]
[347578040,1735923048530,-530.14,0.00020547,3]
[347578042,1735923048539,-500.0,0.00020547,3]
[347578044,1735923048549,-448.2842866,0.00020547,3]
[347578045,1735923048558,-500.0,0.00020547,3]
[347578048,1735923048567,-500.0,0.00020547,3]
[347578050,1735923048577,-500.0,0.00020547,3]
[347578051,1735923048587,-500.0,0.00020547,3]
[347578054,1735923048597,-151.22,0.00020547,3]
[347578055,1735923048607,-7779.87,0.00020547,3]
[347578057,1735923048616,-151.0,0.00020547,2]
[347578059,1735923048626,-151.0,0.00020547,2]
[347578061,1735923048635,-567.74,0.00020547,3]
[347578063,1735923048645,-500.0,0.00020547,3]
[347578065,1735923048655,-1032.67,0.00020547,3]
[347578067,1735923048665,-802.99,0.00020547,3]
[347578069,1735923048674,-803.66,0.00020547,3]
[347578071,1735923048684,-1306.93,0.00020547,3]
[347578073,1735923048693,-500.0,0.00020547,3]
[347578075,1735923048703,-500.0,0.00020547,3]
[347578077,1735923048712,-609.17,0.00020547,3]
[347578079,1735923048722,-500.0,0.00020547,3]
[347578081,1735923048731,-500.0,0.00020547,3]
[347578083,1735923048741,-263.29,0.00020547,3]
[347578085,1735923048750,-701.91,0.00020547,3]
[347578087,1735923048760,-500.0,0.00020547,3]
[347578089,1735923048769,-399.07901626,0.00020547,3]
[347578091,1735923048778,-500.0,0.00020547,3]
[347578093,1735923048787,-500.0,0.00020547,3]
[347578095,1735923048798,-500.0,0.00020547,3]
[347578097,1735923048807,-432.27,0.00020547,3]
[347578099,1735923048817,-603.56,0.00020547,3]
[347578101,1735923048827,-285.128558,0.00020547,2]
[347578103,1735923048837,-285.128558,0.00020547,2]
[347578105,1735923048850,-500.0,0.00020547,3]
[347578107,1735923048859,-586.72,0.00020547,3]
[347578109,1735923048869,-836.88,0.00020547,3]
[347578111,1735923048878,-500.0,0.00020547,3]
[347578113,1735923048888,-500.0,0.00020547,3]
[347578115,1735923048897,-912.77,0.00020547,3]
[347578117,1735923048907,-500.0,0.00020547,3]
[347578119,1735923048917,-500.0,0.00020547,3]
[347578121,1735923048926,-500.0,0.00020547,3]
[347578123,1735923048935,-500.0,0.00020547,3]
[347578125,1735923048945,-214.79,0.00020547,3]
[347578127,1735923048954,-821.93,0.00020547,2]
[347578129,1735923048964,-1156.79,0.00020547,3]
[347578130,1735923048973,-1234.93,0.00020547,3]
[347578133,1735923048983,-1031.15,0.00020547,3]
[347578134,1735923048992,-500.0,0.00020547,3]
[347578136,1735923049002,-1871.57,0.00020547,3]
[347578139,1735923049011,-4093.75,0.00020547,3]
[347578141,1735923049022,-766.96,0.00020547,3]
[347578143,1735923049032,-500.0,0.00020547,3]
[347578145,1735923049042,-3468.23,0.00020547,3]
[347578146,1735923049051,-898.38,0.00020547,3]
[347578149,1735923049061,-267.32799142,0.00020547,3]
[347578150,1735923049071,-500.0,0.00020547,3]
[347578153,1735923049080,-500.0,0.00020547,3]
[347578155,1735923049092,-500.0,0.00020547,3]
[347578157,1735923049102,-731.0,0.00020547,3]
[347578158,1735923049112,-2125.62,0.00020547,3]
[347578160,1735923049121,-608.08,0.00020547,3]
[347578162,1735923049131,-1192.39,0.00020547,3]
[347578164,1735923049140,-500.0,0.00020547,3]
[347578166,1735923049150,-500.0,0.00020547,3]
[347578168,1735923049162,-796.71,0.00020547,3]
[347578170,1735923049172,-500.0,0.00020547,3]
[347578172,1735923049181,-500.0,0.00020547,2]
[347578174,1735923049191,-1303.15,0.00020547,3]
[347578176,1735923049203,-2604.47,0.00020547,3]
[347578179,1735923049213,-500.0,0.00020547,3]
[347578180,1735923049223,-500.0,0.00020547,3]
[347578182,1735923049233,-896.39,0.00020547,3]
[347578184,1735923049243,-2313.48,0.00020547,3]
[347578186,1735923049253,-500.0,0.00020547,3]
[347578188,1735923049262,-893.02,0.00020547,3]
[347578190,1735923049272,-38006.48,0.00020547,3]
[347578193,1735923049282,-2264.35,0.00020547,3]
[347578194,1735923049291,-500.0,0.00020547,3]
[347578196,1735923049301,-841.38,0.00020547,3]
[347578198,1735923049310,-713.68,0.00020547,3]
[347578200,1735923049319,-804.46,0.00020547,3]
[347578202,1735923049329,-618.06,0.00020547,3]
[347578204,1735923049339,-151.0,0.00020547,2]
[347578206,1735923049349,-556.0,0.00020547,3]
[347578209,1735923049358,-500.0,0.00020547,3]
[347578210,1735923049367,-1096.09,0.00020547,3]
[347578212,1735923049377,-5803.72,0.00020547,3]
[347578214,1735923049387,-269.02,0.00020547,3]
[347578216,1735923049396,-2840.47715702,0.00020624,2]
[347578218,1735923049405,-1334.71410486,0.00020687,2]
[347578221,1735923049415,-420.0,0.00020709,2]
[347578222,1735923049424,-2840.47715702,0.00020728,2]
[347578224,1735923049433,-588.0,0.000208,9]
[347578226,1735923049443,-151.0,0.00020821,2]
[347578228,1735923049452,-500.0,0.00020821,3]
[347578230,1735923049462,-151.0,0.00020821,2]
[347578232,1735923049471,-500.0,0.00020821,3]
[347578234,1735923049481,-500.0,0.00020821,3]
[347578236,1735923049490,-508.1,0.00020821,3]
[347578238,1735923049499,-151.0,0.00020821,2]
[347578240,1735923049509,-510.98,0.00020821,3]
[347578243,1735923049519,-530.14,0.00020821,3]
[347578244,1735923049528,-151.0,0.00020821,2]
[347578246,1735923049537,-500.0,0.00020821,3]
[347578248,1735923049547,-500.0,0.00020821,3]
[347578250,1735923049556,-500.0,0.00020821,3]
[347578252,1735923049565,-500.0,0.00020821,3]
[347578254,1735923049575,-500.0,0.00020821,3]
[347578256,1735923049584,-7779.87,0.00020821,3]
[347578258,1735923049597,-500.0,0.00020821,3]
[347578260,1735923049607,-567.74,0.00020821,3]
[347578262,1735923049616,-1032.67,0.00020821,3]
[347578264,1735923049625,-802.99,0.00020821,3]
[347578267,1735923049636,-151.0,0.00020821,2]
[347578269,1735923049645,-170.61675,0.00020821,2]
[347578270,1735923049654,-225.320322,0.00020821,2]
[347578272,1735923049664,-225.320322,0.00020821,2]
[347578274,1735923049673,-803.66,0.00020821,3]
[347578276,1735923049682,-1306.93,0.00020821,3]
[347578278,1735923049691,-500.0,0.00020821,3]
[347578280,1735923049701,-500.0,0.00020821,3]
[347578282,1735923049710,-609.17,0.00020821,3]
[347578284,1735923049719,-500.0,0.00020821,3]
[347578286,1735923049728,-500.0,0.00020821,3]
[347578288,1735923049737,-701.91,0.00020821,3]
[347578290,1735923049747,-500.0,0.00020821,3]
[347578292,1735923049756,-170.517019,0.00020821,2]
[347578294,1735923049765,-500.0,0.00020821,3]
[347578296,1735923049774,-170.517019,0.00020821,2]
[347578298,1735923049784,-500.0,0.00020821,3]
[347578300,1735923049793,-500.0,0.00020821,3]
[347578302,1735923049802,-603.56,0.00020821,3]
[347578304,1735923049811,-500.0,0.00020821,3]
[347578306,1735923049821,-586.72,0.00020821,3]
[347578308,1735923049830,-836.88,0.00020821,3]
[347578310,1735923049840,-500.0,0.00020821,3]
[347578312,1735923049849,-208.96,0.00020821,3]
[347578314,1735923049859,-912.77,0.00020821,3]
[347578316,1735923049868,-500.0,0.00020821,3]
[347578318,1735923049878,-500.0,0.00020821,3]
[347578320,1735923049887,-151.0,0.00020821,2]
[347578322,1735923049896,-500.0,0.00020821,3]
[347578324,1735923049906,-500.0,0.00020821,3]
[347578326,1735923049915,-151.0,0.00020821,2]
[347578328,1735923049925,-821.93,0.00020821,2]
[347578330,1735923049934,-1156.79,0.00020821,3]
[347578332,1735923049944,-1234.93,0.00020821,3]
[347578334,1735923049953,-1031.15,0.00020821,3]
[347578336,1735923049962,-517.72517321,0.00020821,3]
[347578338,1735923049970,-1871.57,0.00020821,3]
[347578340,1735923049979,-4093.75,0.00020821,3]
[347578342,1735923049989,-766.96,0.00020821,3]
[347578344,1735923049998,-500.0,0.00020821,3]
[347578346,1735923050007,-898.38,0.00020821,3]
[347578348,1735923050016,-3468.23,0.00020821,3]
[347578350,1735923050026,-500.0,0.00020821,3]
[347578352,1735923050035,-500.0,0.00020821,3]
[347578354,1735923050044,-500.0,0.00020821,3]
[347578356,1735923050054,-731.0,0.00020821,3]
[347578358,1735923050063,-2125.62,0.00020821,3]
[347578360,1735923050072,-608.08,0.00020821,3]
[347578362,1735923050081,-1192.39,0.00020821,3]
[347578364,1735923050092,-500.0,0.00020821,3]
[347578366,1735923050101,-500.0,0.00020821,3]
[347578368,1735923050110,-796.71,0.00020821,3]
[347578370,1735923050120,-500.0,0.00020821,3]
[347578372,1735923050129,-500.0,0.00020821,2]
[347578374,1735923050138,-1303.15,0.00020821,3]
[347578376,1735923050147,-2604.47,0.00020821,3]
[347578389,1735923050257,-500.0,0.00020821,3]
[347578391,1735923050267,-500.0,0.00020821,3]
[347578393,1735923050277,-896.39,0.00020821,3]
[347578395,1735923050286,-2313.48,0.00020821,3]
[347578397,1735923050296,-500.0,0.00020821,3]
[347578399,1735923050305,-893.02,0.00020821,3]
[347578401,1735923050314,-38006.48,0.00020821,3]
[347578403,1735923050323,-500.0,0.00020821,3]
[347578405,1735923050333,-2264.35,0.00020821,3]
[347578407,1735923050343,-841.38,0.00020821,3]
[347578409,1735923050352,-713.68,0.00020821,3]
[347578411,1735923050362,-804.46,0.00020821,3]
[347578413,1735923050374,-618.06,0.00020821,3]
[347578415,1735923050384,-637.77,0.00020821,3]
[347578417,1735923050393,-1096.09,0.00020821,3]
[347578419,1735923050403,-5803.72,0.00020821,3]
[347578421,1735923050412,-2840.47715702,0.00020831,2]
[347578423,1735923050422,-1334.71410486,0.00020926,2]
[347578425,1735923050434,-2840.47715702,0.00020934,2]
[347578427,1735923050444,-2500.0,0.00020947,2]
[347578429,1735923050454,-2500.0,0.00020956,2]
[347578431,1735923050463,-2500.0,0.00020965,2]
[347578433,1735923050472,-2500.0,0.00020974,2]
[347578435,1735923050482,-2500.0,0.00020982,2]
[347578437,1735923050491,-2500.0,0.00020991,2]
[347578439,1735923050500,-500.0,0.00020993,2]
[347578441,1735923050510,-2500.0,0.00021,2]
[347578443,1735923050519,-214.61470671,0.00021017,2]
[347578445,1735923050528,-187.587171,0.00021032,2]
[347578447,1735923050538,-2840.47715702,0.00021038,2]
[347578449,1735923050547,-151.0,0.00021095,2]
[347578451,1735923050556,-500.0,0.00021095,3]
[347578453,1735923050566,-151.0,0.00021095,2]
[347578455,1735923050575,-151.0,0.00021095,2]
[347578457,1735923050585,-500.0,0.00021095,3]
[347578459,1735923050598,-151.0,0.00021095,2]
[347578461,1735923050607,-500.0,0.00021095,3]
[347578464,1735923050617,-508.1,0.00021095,3]
[347578466,1735923050627,-510.98,0.00021095,3]
[347578468,1735923050637,-530.14,0.00021095,3]
[347578470,1735923050646,-500.0,0.00021095,3]
[347578471,1735923050656,-500.0,0.00021095,3]
[347578472,1735923050666,-500.0,0.00021095,3]
[347578473,1735923050675,-188.07,0.00021095,3]
[347578474,1735923050686,-151.0,0.00021095,2]
[347578475,1735923050695,-7779.87,0.00021095,3]
[347578477,1735923050705,-153.701068,0.00021095,2]
[347578479,1735923050714,-500.0,0.00021095,3]
[347578481,1735923050723,-567.74,0.00021095,3]
[347578483,1735923050733,-1032.67,0.00021095,3]
[347578485,1735923050743,-802.99,0.00021095,3]
[347578487,1735923050752,-803.66,0.00021095,3]
[347578489,1735923050761,-1306.93,0.00021095,3]
[347578490,1735923050771,-500.0,0.00021095,3]
[347578493,1735923050781,-500.0,0.00021095,3]
[347578495,1735923050790,-609.17,0.00021095,3]
[347578496,1735923050799,-500.0,0.00021095,3]
[347578499,1735923050809,-500.0,0.00021095,3]
[347578501,1735923050819,-701.91,0.00021095,3]
[347578502,1735923050828,-500.0,0.00021095,3]
[347578504,1735923050839,-500.0,0.00021095,3]
[347578507,1735923050849,-500.0,0.00021095,3]
[347578508,1735923050859,-500.0,0.00021095,3]
[347578510,1735923050869,-603.56,0.00021095,3]
[347578512,1735923050878,-285.128558,0.00021095,2]
[347578514,1735923050888,-285.128558,0.00021095,2]
[347578516,1735923050898,-500.0,0.00021095,3]
[347578518,1735923050907,-586.72,0.00021095,3]
[347578520,1735923050917,-836.88,0.00021095,3]
[347578522,1735923050926,-500.0,0.00021095,3]
[347578524,1735923050935,-912.77,0.00021095,3]
[347578526,1735923050945,-500.0,0.00021095,3]
[347578529,1735923050955,-500.0,0.00021095,3]
[347578531,1735923050964,-500.0,0.00021095,3]
[347578533,1735923050974,-500.0,0.00021095,3]
[347578535,1735923050983,-151.0,0.00021095,2]
[347578537,1735923050992,-821.93,0.00021095,2]
[347578539,1735923051002,-1156.79,0.00021095,3]
[347578541,1735923051012,-1234.93,0.00021095,3]
[347578543,1735923051022,-1031.15,0.00021095,3]
[347578545,1735923051032,-1871.57,0.00021095,3]
[347578547,1735923051042,-4093.75,0.00021095,3]
[347578549,1735923051052,-766.96,0.00021095,3]
[347578551,1735923051063,-500.0,0.00021095,3]
[347578553,1735923051072,-898.38,0.00021095,3]
[347578555,1735923051082,-3468.23,0.00021095,3]
[347578557,1735923051092,-270.49915164,0.00021095,3]
[347578559,1735923051102,-500.0,0.00021095,3]
[347578561,1735923051112,-500.0,0.00021095,3]
[347578563,1735923051122,-731.0,0.00021095,3]
[347578565,1735923051131,-2125.62,0.00021095,3]
[347578567,1735923051141,-608.08,0.00021095,3]
[347578569,1735923051151,-1192.39,0.00021095,3]
[347578571,1735923051162,-500.0,0.00021095,3]
[347578573,1735923051172,-500.0,0.00021095,3]
[347578575,1735923051182,-796.71,0.00021095,3]
[347578577,1735923051192,-429.11,0.00021095,3]
[347578579,1735923051203,-1303.15,0.00021095,3]
[347578581,1735923051212,-500.0,0.00021095,2]
[347578583,1735923051223,-2604.47,0.00021095,3]
[347578585,1735923051235,-500.0,0.00021095,3]
[347578588,1735923051245,-500.0,0.00021095,3]
[347578590,1735923051255,-896.39,0.00021095,3]
[347578592,1735923051267,-2313.48,0.00021095,3]
[347578594,1735923051276,-500.0,0.00021095,3]
[347578596,1735923051286,-893.02,0.00021095,3]
[347578598,1735923051295,-38006.48,0.00021095,3]
[347578600,1735923051304,-500.0,0.00021095,3]
[347578602,1735923051314,-2264.35,0.00021095,3]
[347578604,1735923051323,-841.38,0.00021095,3]
[347578605,1735923051332,-713.68,0.00021095,3]
[347578608,1735923051342,-804.46,0.00021095,3]
[347578610,1735923051352,-618.06,0.00021095,3]
[347578612,1735923051361,-151.0,0.00021095,2]
[347578614,1735923051370,-1096.09,0.00021095,3]
[347578615,1735923051379,-5803.72,0.00021095,3]
[347578617,1735923051389,-2840.47715702,0.00021141,2]
[347578619,1735923051398,-216.9645596,0.00021155,2]
[347578621,1735923051408,-1334.71410486,0.00021166,2]
[347578623,1735923051417,-2840.47715702,0.00021245,2]
[347578625,1735923051426,-2000.0,0.000213,2]
[347578627,1735923051435,-2840.47715702,0.00021348,2]
[347578629,1735923051446,-246.90250578,0.00021368,2]
[347578631,1735923051455,-151.0,0.00021369,2]
[347578633,1735923051465,-500.0,0.00021369,3]
[347578635,1735923051474,-500.0,0.00021369,3]
[347578638,1735923051484,-579.04,0.00021369,3]
[347578639,1735923051493,-508.1,0.00021369,3]
[347578641,1735923051503,-151.0,0.00021369,2]
[347578644,1735923051512,-510.98,0.00021369,3]
[347578645,1735923051522,-530.14,0.00021369,3]
[347578648,1735923051531,-151.0,0.00021369,2]
[347578650,1735923051540,-500.0,0.00021369,3]
[347578651,1735923051549,-500.0,0.00021369,3]
[347578653,1735923051559,-500.0,0.00021369,3]
[347578656,1735923051569,-7779.87,0.00021369,3]
[347578658,1735923051578,-500.0,0.00021369,3]
[347578660,1735923051589,-567.74,0.00021369,3]
[347578662,1735923051599,-1032.67,0.00021369,3]
[347578664,1735923051608,-802.99,0.00021369,3]
[347578666,1735923051618,-287.506389,0.00021369,2]
[347578668,1735923051628,-225.320322,0.00021369,2]
[347578670,1735923051637,-225.320322,0.00021369,2]
[347578672,1735923051647,-803.66,0.00021369,3]
[347578674,1735923051656,-1306.93,0.00021369,3]
[347578676,1735923051666,-500.0,0.00021369,3]
[347578678,1735923051675,-500.0,0.00021369,3]
[347578680,1735923051684,-609.17,0.00021369,3]
[347578682,1735923051694,-500.0,0.00021369,3]
[347578684,1735923051703,-500.0,0.00021369,3]
[347578686,1735923051713,-701.91,0.00021369,3]
[347578688,1735923051722,-500.0,0.00021369,3]
[347578690,1735923051731,-170.517019,0.00021369,2]
[347578692,1735923051740,-500.0,0.00021369,3]
[347578694,1735923051750,-170.517019,0.00021369,2]
[347578696,1735923051759,-500.0,0.00021369,3]
[347578698,1735923051768,-500.0,0.00021369,3]
[347578700,1735923051777,-603.56,0.00021369,3]
[347578702,1735923051786,-500.0,0.00021369,3]
[347578704,1735923051795,-586.72,0.00021369,3]
[347578706,1735923051804,-836.88,0.00021369,3]
[347578708,1735923051814,-500.0,0.00021369,3]
[347578710,1735923051823,-912.77,0.00021369,3]
[347578712,1735923051833,-500.0,0.00021369,3]
[347578714,1735923051842,-500.0,0.00021369,3]
[347578716,1735923051851,-500.0,0.00021369,3]
[347578718,1735923051861,-500.0,0.00021369,3]
[347578720,1735923051870,-821.93,0.00021369,2]
[347578722,1735923051880,-1156.79,0.00021369,3]
[347578724,1735923051890,-1234.93,0.00021369,3]
[347578726,1735923051899,-1031.15,0.00021369,3]
[347578728,1735923051909,-1871.57,0.00021369,3]
[347578730,1735923051918,-4093.75,0.00021369,3]
[347578732,1735923051928,-199.7,0.00021369,3]
[347578734,1735923051938,-265.77602253,0.00021369,3]
[347578736,1735923051947,-766.96,0.00021369,3]
[347578738,1735923051957,-500.0,0.00021369,3]
[347578740,1735923051966,-898.38,0.00021369,3]
[347578743,1735923051977,-3468.23,0.00021369,3]
[347578745,1735923051986,-500.0,0.00021369,3]
[347578747,1735923051995,-500.0,0.00021369,3]
[347578749,1735923052005,-731.0,0.00021369,3]
[347578751,1735923052015,-2125.62,0.00021369,3]
[347578753,1735923052024,-608.08,0.00021369,3]
[347578755,1735923052033,-1192.39,0.00021369,3]
[347578757,1735923052042,-500.0,0.00021369,3]
[347578759,1735923052051,-500.0,0.00021369,3]
[347578761,1735923052060,-796.71,0.00021369,3]
[347578763,1735923052070,-1303.15,0.00021369,3]
[347578765,1735923052080,-500.0,0.00021369,2]
[347578767,1735923052090,-2604.47,0.00021369,3]
[347578769,1735923052099,-500.0,0.00021369,3]
[347578771,1735923052108,-500.0,0.00021369,3]
[347578773,1735923052118,-896.39,0.00021369,3]
[347578775,1735923052128,-2313.48,0.00021369,3]
[347578777,1735923052137,-893.02,0.00021369,3]
[347578779,1735923052146,-500.0,0.00021369,3]
[347578781,1735923052157,-38006.48,0.00021369,3]
[347578783,1735923052169,-500.0,0.00021369,3]
[347578785,1735923052179,-2264.35,0.00021369,3]
[347578787,1735923052189,-841.38,0.00021369,3]
[347578789,1735923052199,-713.68,0.00021369,3]
[347578791,1735923052209,-804.46,0.00021369,3]
[347578793,1735923052219,-618.06,0.00021369,3]
[347578795,1735923052228,-268.52954132,0.00021369,3]
[347578797,1735923052239,-1096.09,0.00021369,3]
[347578808,1735923052341,-5803.72,0.00021369,3]
[347578810,1735923052352,-1334.71410486,0.00021406,2]
[347578812,1735923052361,-500.0,0.00021407,2]
[347578814,1735923052371,-2840.47715702,0.00021452,2]
[347578816,1735923052380,-791.0,0.000215,2]
[347578818,1735923052389,-1001.03208756,0.00021522,2]
[347578820,1735923052398,-187.587171,0.00021543,2]
[347578822,1735923052408,-214.61470671,0.00021546,2]
[347578824,1735923052418,-2840.47715702,0.00021555,2]
[347578826,1735923052427,-2000.0,0.000216,2]
[347578828,1735923052436,-2000.0,0.000216,2]
[347578830,1735923052445,-7968.0,0.000216,4]
[347578832,1735923052455,-7834.48,0.000216,2]
[347578834,1735923052464,-2251.58,0.000216,2]
[347578836,1735923052473,-152.334057,0.00021643,2]
[347578838,1735923052483,-500.0,0.00021643,3]
[347578840,1735923052492,-151.0,0.00021643,2]
[347578842,1735923052502,-151.0,0.00021643,2]
[347578845,1735923052511,-500.0,0.00021643,3]
[347578847,1735923052520,-151.0,0.00021643,2]
[347578848,1735923052530,-508.1,0.00021643,3]
[347578851,1735923052540,-510.98,0.00021643,3]
[347578853,1735923052549,-530.14,0.00021643,3]
[347578855,1735923052558,-285.59140349,0.00021643,3]
[347578857,1735923052568,-500.0,0.00021643,3]
[347578859,1735923052577,-500.0,0.00021643,3]
[347578860,1735923052587,-151.0,0.00021643,2]
[347578863,1735923052597,-7779.87,0.00021643,3]
[347578865,1735923052606,-500.0,0.00021643,3]
[347578867,1735923052616,-567.74,0.00021643,3]
[347578869,1735923052626,-1032.67,0.00021643,3]
[347578871,1735923052636,-802.99,0.00021643,3]
[347578873,1735923052646,-803.66,0.00021643,3]
[347578875,1735923052655,-1306.93,0.00021643,3]
[347578877,1735923052665,-500.0,0.00021643,3]
[347578879,1735923052675,-500.0,0.00021643,3]
[347578881,1735923052685,-609.17,0.00021643,3]
[347578883,1735923052695,-500.0,0.00021643,3]
[347578885,1735923052704,-442.77673273,0.00021643,3]
[347578887,1735923052714,-701.91,0.00021643,3]
[347578889,1735923052723,-500.0,0.00021643,3]
[347578891,1735923052732,-500.0,0.00021643,3]
[347578893,1735923052742,-500.0,0.00021643,3]
[347578895,1735923052751,-500.0,0.00021643,3]
[347578897,1735923052761,-603.56,0.00021643,3]
[347578899,1735923052771,-285.128558,0.00021643,2]
[347578901,1735923052780,-285.128558,0.00021643,2]
[347578903,1735923052790,-500.0,0.00021643,3]
[347578905,1735923052799,-586.72,0.00021643,3]
[347578907,1735923052809,-836.88,0.00021643,3]
[347578909,1735923052818,-500.0,0.00021643,3]
[347578911,1735923052828,-912.77,0.00021643,3]
[347578913,1735923052838,-500.0,0.00021643,3]
[347578915,1735923052847,-353.7601675,0.00021643,3]
[347578917,1735923052856,-500.0,0.00021643,3]
[347578918,1735923052865,-500.0,0.00021643,3]
[347578920,1735923052875,-821.93,0.00021643,2]
[347578923,1735923052885,-1156.79,0.00021643,3]
[347578924,1735923052894,-1234.93,0.00021643,3]
[347578926,1735923052904,-1031.15,0.00021643,3]
[347578928,1735923052914,-1871.57,0.00021643,3]
[347578930,1735923052923,-4093.75,0.00021643,3]
[347578932,1735923052933,-766.96,0.00021643,3]
[347578934,1735923052943,-500.0,0.00021643,3]
[347578936,1735923052952,-898.38,0.00021643,3]
[347578938,1735923052961,-3468.23,0.00021643,3]
[347578940,1735923052971,-500.0,0.00021643,3]
[347578942,1735923052981,-500.0,0.00021643,3]
[347578944,1735923052991,-731.0,0.00021643,3]
[347578946,1735923053001,-2125.62,0.00021643,3]
[347578948,1735923053010,-608.08,0.00021643,3]